bitfinex/quotes_ETHUSD_20240621
["timestamp","ask_amount","ask_price","bid_price","bid_amount"]
[1718957309028,1.3494232,3477.7,3476.7,3.6361]
[1718957309210,1.3494232,3477.8,3476.8,0.47996]
[1718957309739,1.3494232,3477.9,3476.8,0.47996]
[1718957309951,3.0,3478.6,3476.8,0.47996]
[1718957310110,1.34977799,3477.7,3476.8,0.47996]
[1718957310310,0.58801,3479.1,3476.9,0.466606]
[1718957310311,6.026,3478.8,3476.9,0.466606]
[1718957310560,1.34989592,3478.0,3476.9,0.466606]
[1718957311448,1.84794678,3477.9,3476.9,0.466606]
[1718957311665,1.34989592,3477.9,3476.7,3.6361]
[1718957311867,1.34989592,3478.0,3476.7,3.6361]
[1718957312475,1.34989592,3478.2,3476.9,3.5234]
[1718957312652,1.34989592,3478.3,3477.0,0.62304]
[1718957313133,1.35006799,3478.5,3477.0,0.62304]
[1718957313330,1.35006799,3478.5,3477.1,0.05742489]
[1718957313516,1.35006799,3478.5,3477.2,0.42038649]
[1718957313716,3.58801,3479.1,3477.2,0.42038649]
[1718957313717,1.35006799,3478.3,3477.2,0.42038649]
[1718957313918,1.84803842,3478.2,3476.9,3.5234]
[1718957314153,1.35006799,3478.3,3477.0,0.55]
[1718957314614,1.35006799,3478.3,3476.9,3.5234]
[1718957314615,4.38306799,3478.3,3476.9,3.5234]
[1718957314810,1.35006799,3477.7,3476.2,3.4568]
[1718957315020,4.12825728,3478.2,3476.2,6.23322813]
[1718957315021,1.35006799,3477.4,3476.2,6.23322813]
[1718957315451,1.8480901,3477.3,3476.2,6.23322813]
[1718957315646,1.8480901,3477.2,3476.2,6.23322813]
[1718957315854,1.35006799,3477.2,3476.2,6.23322813]
[1718957316057,3.0,3477.9,3476.2,6.23322813]
[1718957316286,1.34944194,3477.2,3476.2,6.23322813]
[1718957316465,0.49817951,3477.1,3476.3,2.77642813]
[1718957316764,1.34944194,3477.2,3476.3,2.77642813]
[1718957317249,0.49817951,3478.1,3476.3,2.77642813]
[1718957317250,1.34944194,3477.1,3476.3,2.77642813]
[1718957317424,1.34944194,3477.1,3476.2,3.4568]
[1718957317819,1.34944194,3477.1,3476.4,4.0108]
[1718957318063,4.0136,3478.8,3476.7,2.707]
[1718957318064,1.34944194,3477.7,3476.7,2.707]
[1718957318219,1.34944194,3477.8,3476.8,1.27678]
[1718957318424,1.34944194,3477.9,3476.9,0.05750664]
[1718957318648,1.34944194,3477.9,3477.0,0.55]
[1718957318849,1.34944194,3477.9,3477.1,0.05750333]
[1718957319066,1.34944194,3477.9,3476.8,0.72678]
[1718957319225,1.34984283,3477.6,3476.9,0.55]
[1718957319430,1.34984283,3477.4,3476.9,0.55]
[1718957319749,1.34953236,3477.0,3476.0,78.44108122]
[1718957319945,1.34951868,3476.8,3476.0,78.44108122]
[1718957320154,1.84764912,3476.7,3476.1,2.77642813]
[1718957320381,1.34951868,3476.4,3476.1,2.77642813]
[1718957320542,1.34951868,3476.4,3476.0,78.44108122]
[1718957320862,1.34951868,3476.1,3476.0,78.44108122]
[1718957321043,1.34951868,3476.2,3476.0,78.44108122]
[1718957322271,3.0,3477.4,3476.0,78.44108122]
[1718957322479,1.34930627,3476.2,3476.0,78.44108122]
[1718957323059,1.8475379,3476.1,3476.0,78.44108122]
[1718957323224,1.34930627,3476.1,3476.0,78.44108122]
[1718957323427,1.34930627,3476.1,3476.0,81.21750935]
[1718957323625,4.0325,3478.3,3476.0,84.47450935]
[1718957323626,0.49823163,3477.3,3476.0,84.47450935]
[1718957323853,0.49811243,3477.8,3476.1,0.55]
[1718957324051,0.49811243,3478.1,3476.2,2.77642813]
[1718957324255,0.49811243,3478.1,3476.3,0.55]
[1718957324457,4.0325,3478.3,3476.3,0.55]
[1718957324458,0.59613757,3478.0,3476.3,0.55]
[1718957324751,3.53111243,3478.2,3476.0,83.92450935]
[1718957325075,4.0325,3478.3,3476.1,0.55]
[1718957325076,1.09479293,3478.1,3476.1,0.55]
[1718957325292,1.09479844,3478.0,3476.1,0.55]
[1718957325576,1.09479844,3477.9,3476.1,0.55]
[1718957325806,3.033,3478.6,3476.1,0.55]
[1718957325807,0.49811794,3478.2,3476.2,2.77642813]
[1718957326073,3.49811794,3478.5,3476.3,4.8294]
[1718957326287,1.09484037,3478.4,3476.4,0.05745632]
[1718957326484,0.59672243,3478.3,3476.5,1.31632845]
[1718957326774,0.49811794,3478.7,3476.5,1.31632845]
[1718957326775,0.59672243,3478.2,3476.5,1.31632845]
[1718957326977,0.59672243,3478.1,3476.5,0.55]
[1718957327190,3.49811794,3478.5,3476.5,4.2794]
[1718957327191,0.49811794,3478.4,3476.5,4.2794]
[1718957327490,0.49811794,3478.4,3476.4,0.55]
[1718957327491,0.49811794,3478.4,3476.8,4.2794]
[1718957327652,0.49811794,3478.8,3476.9,0.55]
[1718957327853,0.59694334,3478.7,3476.9,0.55]
[1718957328039,0.59694334,3478.6,3476.9,0.55]
[1718957328238,0.59694334,3478.5,3476.9,0.55]
[1718957328487,0.59695738,3478.4,3476.9,0.55]
[1718957328648,4.2949,3478.6,3476.9,0.55]
[1718957328649,0.59695738,3478.3,3476.9,0.55]
[1718957328984,0.49806749,3478.4,3476.9,0.55]
[1718957329281,0.59704954,3478.3,3476.9,0.55]
[1718957330640,1.09511703,3478.3,3476.9,0.55]
[1718957330882,0.49806749,3478.6,3476.9,0.55]
[1718957331068,0.59697892,3478.5,3476.9,0.55]
[1718957331481,1.09504395,3478.5,3476.9,0.55]
[1718957331797,1.09504395,3478.4,3476.9,0.55]
[1718957332084,0.49806503,3478.3,3476.9,0.55]
[1718957332242,0.49806503,3478.7,3476.9,0.55]
[1718957332445,0.59701841,3478.6,3476.9,1.03294]
[1718957332847,0.59701841,3478.5,3477.0,4.3023]
[1718957333045,0.49806503,3478.9,3477.1,0.55]
[1718957333245,0.59720444,3478.8,3477.1,0.55]
[1718957333606,1.09519881,3478.8,3477.1,1.03523]
[1718957333763,1.09519881,3478.7,3477.1,1.03523]
[1718957333959,0.59720444,3478.6,3477.1,0.55]
[1718957334144,0.59720444,3478.5,3477.1,0.55]
[1718957334351,0.59718637,3478.4,3477.1,0.55]
[1718957334698,0.4979829,3479.0,3477.1,0.55]
[1718957334846,0.59736267,3478.9,3477.2,0.48523]
[1718957335047,0.59736267,3478.9,3477.4,3.8942]
[1718957335299,0.59736267,3478.9,3477.5,0.55]
[1718957335598,1.09534557,3478.9,3477.5,0.55]
[1718957335747,1.09534557,3478.8,3477.5,0.55]
[1718957335951,0.59736267,3478.7,3477.6,0.44442]
[1718957336288,0.4979829,3479.3,3477.7,0.55]
[1718957336470,3.0,3479.5,3477.7,0.55]
[1718957336471,1.17349322,3479.2,3477.7,0.55]
[1718957336785,1.67147612,3479.1,3477.8,0.02880499]
[1718957336943,1.67147612,3479.0,3477.8,0.02880499]
[1718957337147,3.0,3479.5,3477.8,0.02880499]
[1718957337148,1.67147612,3478.9,3477.8,0.02880499]
[1718957337383,1.67147612,3478.8,3477.8,0.02880499]
[1718957337543,3.0,3479.5,3477.8,0.02880499]
[1718957337544,1.67147612,3478.7,3477.8,0.02880499]
[1718957337747,3.0,3479.5,3477.8,0.02880499]
[1718957337954,0.49793107,3478.6,3477.8,0.02880499]
[1718957338252,3.0,3479.5,3477.8,0.02880499]
[1718957338253,0.49792546,3479.3,3477.8,0.02880499]
[1718957338480,3.0,3479.5,3477.5,0.55]
[1718957338481,1.17386044,3479.2,3477.5,0.55]
[1718957338649,1.6717859,3479.1,3477.5,0.55]
[1718957338985,1.67181312,3479.0,3477.5,0.55]
[1718957339188,1.67181312,3478.9,3477.5,0.55]
[1718957339482,1.67181312,3478.8,3477.5,0.55]
[1718957339657,1.17386044,3478.7,3477.5,0.55]
[1718957339860,1.67181312,3478.7,3477.5,0.55]
[1718957340047,6.033,3479.5,3477.5,0.55]
[1718957340048,1.67181312,3478.6,3477.5,0.55]
[1718957340245,1.67181312,3478.5,3477.5,0.55]
[1718957340462,0.49795268,3478.4,3477.5,0.55]
[1718957340650,6.033,3479.5,3477.5,0.55]
[1718957340959,1.6716239,3479.4,3477.5,0.55]
[1718957341290,1.6716239,3479.3,3477.6,4.0238]
[1718957341592,1.6716239,3479.2,3477.7,0.55]
[1718957341743,1.6716239,3479.1,3477.7,0.55]
[1718957341944,1.6716239,3479.0,3477.7,0.55]
[1718957342184,1.6716239,3478.9,3477.9,4.0825]
[1718957342502,3.0,3479.8,3478.0,0.55]
[1718957342705,1.67202045,3479.7,3478.0,1.058988]
[1718957342869,1.17413903,3479.6,3478.0,0.55]
[1718957343076,1.67202045,3479.6,3478.0,0.55]
[1718957343395,1.67204326,3479.5,3478.0,0.55]
[1718957343696,3.0,3479.8,3478.0,0.55]
[1718957343697,1.67204326,3479.4,3478.0,0.55]
[1718957343904,1.67204326,3479.3,3478.1,4.71675]
[1718957344061,1.67204326,3479.2,3478.2,4.518]
[1718957344262,1.67204326,3479.1,3478.2,4.518]
[1718957344599,3.0,3480.1,3478.3,0.498125]
[1718957344758,1.67288508,3480.0,3478.4,0.55]
[1718957344961,1.67288508,3479.9,3478.5,4.0182]
[1718957345222,1.67288508,3479.8,3478.5,4.07568619]
[1718957345361,1.67288508,3479.7,3478.5,4.07568619]
[1718957345561,3.033,3480.3,3478.5,4.07568619]
[1718957345562,1.67288508,3479.6,3478.5,4.07568619]
[1718957345762,1.67288508,3479.5,3478.5,4.07568619]
[1718957346011,0.49783626,3479.4,3478.5,4.07568619]
[1718957346303,3.4978166,3480.2,3478.5,4.07568619]
[1718957346531,1.67325855,3480.1,3478.5,4.07568619]
[1718957346663,1.17544195,3480.0,3478.5,4.07568619]
[1718957346997,1.67327854,3479.9,3478.6,0.55]
[1718957347208,1.67327854,3479.8,3478.7,0.0574821]
[1718957347366,1.67325874,3479.7,3478.8,0.05748044]
[1718957347562,1.67325874,3479.6,3478.6,0.55]
[1718957347760,1.67325438,3479.5,3478.6,0.55]
[1718957347995,3.0,3480.3,3478.7,0.45682]
[1718957348212,1.67329702,3480.2,3478.7,0.45682]
[1718957348422,3.0,3480.3,3478.5,4.0182]
[1718957348423,1.67329702,3480.1,3478.5,4.0182]
[1718957348696,4.70629702,3480.0,3478.5,4.0182]
[1718957348912,4.67329702,3479.9,3478.5,4.0182]
[1718957349121,1.17547379,3479.8,3478.5,4.0182]
[1718957349265,8.92696486,3479.8,3477.7,4.2032]
[1718957349606,7.70636486,3479.7,3477.7,4.2032]
[1718957349774,1.67336486,3479.6,3477.8,0.42032]
[1718957349974,1.67336486,3479.5,3477.8,0.42032]
[1718957350321,1.67336486,3479.4,3477.8,0.42032]
[1718957350615,1.67336486,3479.3,3477.8,0.42032]
[1718957350770,8.46124209,3479.7,3477.8,0.42032]
[1718957350771,1.67336486,3479.2,3477.8,0.42032]
[1718957350969,2.42824209,3479.6,3477.7,4.2032]
[1718957350970,1.67336486,3479.1,3477.7,4.2032]
[1718957351312,1.67336486,3479.0,3477.8,0.55]
[1718957351511,0.49789107,3478.9,3477.8,0.55]
[1718957351678,0.49789107,3479.4,3477.8,0.55]
[1718957351883,1.1748094,3479.3,3477.8,0.55]
[1718957352084,1.67270047,3479.2,3477.8,0.55]
[1718957352284,1.67270047,3479.1,3477.8,1.02532]
[1718957352616,1.6727226,3479.0,3477.8,0.55]
[1718957352856,1.6727226,3478.9,3477.8,0.55]
[1718957353027,0.4979132,3478.8,3477.8,0.55]
[1718957353227,0.4979132,3479.5,3477.9,0.47532]
[1718957353436,1.17510396,3479.4,3477.8,0.55]
[1718957353763,0.4979132,3479.3,3477.8,0.55]
[1718957353967,0.4979132,3479.3,3476.9,4.385]
[1718957353968,7.0905,3479.0,3476.9,4.385]
[1718957354247,4.0,3478.6,3477.0,1.1755]
[1718957354547,4.67301716,3478.5,3476.9,4.385]
[1718957354713,1.67301716,3478.4,3476.9,4.385]
[1718957354921,1.67301716,3478.3,3476.9,4.385]
[1718957355150,1.67301716,3478.2,3477.0,0.4385]
[1718957355356,1.67301716,3478.1,3477.0,0.4385]
[1718957355557,1.17510396,3478.0,3477.0,0.4385]
[1718957355759,1.67301716,3478.0,3477.1,0.48235]
[1718957356052,0.49805755,3477.9,3477.1,0.48235]
[1718957356249,3.0,3478.5,3477.1,0.48235]
[1718957356456,1.67216533,3478.4,3477.1,0.48235]
[1718957356652,1.67216533,3478.3,3477.3,4.385]
[1718957356815,0.49805975,3478.2,3477.3,4.385]
[1718957357015,0.4980107,3478.4,3477.3,4.385]
[1718957357353,1.17416747,3478.3,3477.4,0.4871735]
[1718957357517,0.4980107,3478.2,3477.4,0.4871735]
[1718957357854,0.49800331,3478.2,3477.4,0.4871735]
[1718957358054,0.49800331,3478.4,3477.4,0.4871735]
[1718957358214,1.17451222,3478.3,3477.4,0.4871735]
[1718957358420,0.49800331,3478.2,3477.5,0.48721735]
[1718957358667,0.49800331,3478.4,3477.6,4.0532]
[1718957358961,3.0,3478.5,3477.7,0.55]
[1718957359120,0.49793391,3478.4,3477.7,0.55]
[1718957359316,3.49793391,3479.7,3477.7,1.05904174]
[1718957359518,4.67264841,3479.6,3477.7,1.05904174]
[1718957359749,1.67264841,3479.5,3477.8,4.0828]
[1718957360063,10.06013135,3480.1,3477.2,2.30069]
[1718957360064,0.49793391,3479.4,3478.0,4.0828]
[1718957360355,0.48823391,3480.0,3478.2,4.0828]
[1718957360566,1.17548429,3479.9,3478.3,0.55]
[1718957360853,1.17548429,3479.9,3478.4,4.0828]
[1718957361053,1.17548429,3479.8,3478.5,1.01328]
[1718957361254,2.707,3480.6,3478.5,1.01328]
[1718957361466,1.17548784,3480.5,3478.6,4.3524]
[1718957361639,1.17548784,3480.4,3478.7,0.55]
[1718957361960,1.17548784,3480.3,3478.7,0.55]
[1718957362131,1.17548784,3480.2,3478.8,0.536568]
[1718957362319,1.17548784,3480.1,3478.8,0.536568]
[1718957362526,1.17548784,3480.0,3478.8,0.536568]
[1718957362722,3.0,3480.6,3478.7,0.55]
[1718957362723,1.17548784,3479.9,3478.9,0.5438968]
[1718957363020,3.0,3480.6,3479.0,4.395]
[1718957363230,2.707,3480.7,3479.0,4.395]
[1718957363231,1.17603013,3480.5,3479.1,1.04388968]
[1718957363531,6.756,3481.2,3479.1,1.04388968]
[1718957363731,1.17613279,3481.1,3479.1,1.04388968]
[1718957363935,1.17613279,3481.1,3479.2,0.54388897]
[1718957364136,1.17613279,3481.1,3479.4,4.0985]
[1718957364547,4.17613279,3481.1,3479.5,0.55]
[1718957364864,1.17613279,3481.0,3479.5,0.55]
[1718957365035,3.033,3481.6,3479.6,0.46485]
[1718957365252,1.92526084,3482.1,3480.0,2.707]
[1718957365532,4.2932,3482.8,3480.1,4.5464]
[1718957365743,4.2932,3482.8,3480.2,0.95523]
[1718957365952,4.2932,3482.8,3480.4,3.9964]
[1718957365953,3.0,3482.7,3480.4,3.9964]
[1718957366161,3.0,3482.7,3480.6,4.152]
[1718957366340,2.707,3483.1,3480.6,4.152]
[1718957366657,2.707,3483.1,3480.2,3.25389]
[1718957366658,3.0,3483.0,3480.8,4.152]
[1718957366866,2.707,3483.5,3480.9,0.55]
[1718957367219,2.707,3483.5,3481.0,4.1506]
[1718957367467,7.1537,3483.6,3480.9,0.55]
[1718957367468,4.1207,3483.6,3481.2,4.1506]
[1718957367799,4.1207,3483.6,3481.3,1.02006]
[1718957368285,6.32801,3483.9,3481.3,1.02006]
[1718957368860,2.707,3483.9,3481.5,2.29784]
[1718957369103,2.42364558,3484.9,3481.8,4.0058]
[1718957369104,0.27584974,3484.9,3481.8,4.0058]
[1718957369362,4.2866,3485.0,3481.7,2.707]
[1718957369363,5.74,3484.6,3482.0,4.0058]
[1718957369663,5.74,3484.6,3482.1,0.55]
[1718957370428,3.49726402,3484.5,3482.1,0.55]
[1718957370627,3.49726402,3484.5,3482.2,0.5511858]
[1718957370628,0.49726402,3484.4,3482.2,0.5511858]
[1718957370862,3.0,3484.5,3482.3,0.55]
[1718957371063,0.49723056,3484.4,3482.3,0.55]
[1718957371370,3.53023056,3484.4,3482.3,0.55]
[1718957371524,0.49723056,3484.3,3482.3,0.55]
[1718957371724,3.49723056,3484.3,3482.3,1.06069858]
[1718957371948,0.49723056,3484.2,3482.3,1.06069858]
[1718957372625,3.0,3484.3,3482.4,4.3317]
[1718957372882,3.0,3484.4,3482.5,0.55]
[1718957373259,3.0,3484.5,3482.5,0.55]
[1718957373972,2.707,3484.7,3482.6,4.1871]
[1718957373973,3.0,3484.6,3482.6,4.1871]
[1718957374267,3.0,3484.6,3482.7,0.96871]
[1718957374472,3.0,3484.8,3482.7,0.96871]
[1718957374659,3.0,3484.8,3482.8,3.9913]
[1718957374822,3.0,3484.8,3482.7,0.96871]
[1718957374823,3.033,3485.2,3483.0,3.9913]
[1718957375027,3.0,3485.1,3483.1,0.55]
[1718957375272,3.0,3485.5,3483.2,0.45413]
[1718957375571,3.0,3485.5,3483.3,4.7173]
[1718957375749,2.707,3485.6,3483.3,4.7173]
[1718957376730,3.033,3485.5,3483.3,4.7173]
[1718957376931,3.0,3485.4,3483.3,4.7173]
[1718957377632,3.0,3485.5,3483.3,4.7173]
[1718957377970,3.0,3485.5,3483.4,4.45793]
[1718957378171,3.0,3485.5,3483.5,0.55]
[1718957378469,6.033,3485.5,3483.5,0.55]
[1718957378673,6.033,3485.5,3483.4,3.9862]
[1718957379372,3.033,3484.9,3483.4,3.9862]
[1718957379883,3.033,3484.7,3483.4,3.9862]
[1718957380038,3.0,3484.6,3483.4,3.9862]
[1718957380451,2.707,3484.0,3482.2,4.3803]
[1718957380872,3.0,3483.9,3482.2,4.3803]
[1718957381171,0.58801,3485.1,3482.7,2.29703]
[1718957381374,0.58801,3485.1,3483.0,4.002]
[1718957381739,2.707,3485.9,3483.0,4.002]
[1718957382074,2.707,3485.9,3482.9,2.707]
[1718957382075,3.033,3485.8,3483.2,4.002]
[1718957382274,3.033,3485.8,3483.3,1.0052]
[1718957382485,3.0,3485.7,3483.3,1.0052]
[1718957382986,2.707,3485.4,3483.3,1.0052]
[1718957383190,3.0,3485.3,3483.3,1.0052]
[1718957383337,3.0,3485.3,3483.4,4.0842]
[1718957383539,3.0,3485.3,3483.5,1.05894]
[1718957384183,3.0,3485.3,3483.6,0.04018534]
[1718957384385,7.1711,3485.2,3482.9,4.0842]
[1718957384556,3.033,3483.9,3482.4,4.0842]
[1718957384755,2.707,3483.4,3482.4,4.0842]
[1718957385081,0.04018542,3483.3,3482.4,4.0842]
[1718957385380,3.04018542,3483.3,3482.4,4.0842]
[1718957385593,0.04018542,3483.2,3482.4,4.0842]
[1718957386346,3.0,3483.3,3482.4,4.0842]
[1718957386546,0.04018542,3483.2,3482.4,4.0842]
[1718957389477,0.04018542,3483.7,3482.4,4.0842]
[1718957389986,3.0,3483.8,3482.4,4.0842]
[1718957390670,3.0,3483.8,3481.7,2.2977]
[1718957390671,3.0,3483.8,3482.6,4.1929]
[1718957391058,2.707,3484.4,3482.7,0.55]
[1718957391397,0.49717788,3484.3,3482.8,4.1929]
[1718957391556,0.49718764,3484.3,3483.0,4.0617]
[1718957391754,3.0,3484.3,3483.1,0.55]
[1718957392156,0.49717581,3484.2,3483.1,0.55]
[1718957392359,0.49717581,3484.2,3483.2,0.508599]
[1718957392579,3.0,3484.3,3483.2,0.508599]
[1718957393092,3.0,3484.3,3483.3,4.4212]
[1718957393296,0.49715606,3484.2,3483.3,4.4212]
[1718957393468,0.53735075,3484.2,3483.3,4.4212]
[1718957393886,0.49716533,3484.2,3483.3,4.4212]
[1718957394397,0.49718924,3484.2,3483.3,4.4212]
[1718957394583,0.53737466,3484.2,3483.3,4.4212]
[1718957395362,2.707,3483.9,3483.3,4.4212]
[1718957395564,2.707,3483.9,3482.4,7.37]
[1718957395565,0.53740386,3483.8,3482.4,7.37]
[1718957395793,0.04018542,3483.7,3482.5,4.0119]
[1718957396096,0.53740386,3483.7,3482.5,4.0119]
[1718957398401,0.04018542,3483.7,3482.5,4.0119]
[1718957398575,0.5375277,3483.7,3482.5,4.0119]
[1718957398969,2.707,3483.5,3482.5,4.0119]
[1718957399190,3.5375277,3483.4,3482.5,4.0119]
[1718957399389,0.49734228,3483.3,3482.5,4.0119]
[1718957399590,0.04018542,3483.2,3482.5,4.0119]
[1718957401703,0.53752774,3483.3,3482.5,4.0119]
[1718957404113,0.49731201,3483.3,3482.6,0.05729374]
[1718957404474,0.53749743,3483.8,3482.5,4.0119]
[1718957404699,0.04018542,3483.7,3482.5,3.685486]
[1718957405271,2.707,3483.5,3482.5,3.685486]
[1718957405476,3.53749743,3483.4,3482.5,3.685486]
[1718957405676,0.49731201,3483.3,3482.5,3.685486]
[1718957405971,0.04018542,3483.2,3482.5,3.685486]
[1718957407124,3.0,3483.4,3482.5,3.685486]
[1718957407125,0.53753485,3483.3,3482.5,3.685486]
[1718957407441,0.04018542,3483.2,3482.5,3.685486]
[1718957407595,0.49734943,3483.3,3482.5,3.685486]
[1718957407994,3.53753485,3484.2,3482.5,3.657486]
[1718957408195,2.707,3483.4,3482.5,3.657486]
[1718957408408,3.53753485,3483.3,3482.5,3.657486]
[1718957408611,0.53753485,3483.2,3482.5,3.657486]
[1718957409685,0.04018542,3483.2,3482.5,3.657486]
[1718957409929,0.5375579,3483.2,3482.5,3.657486]
[1718957410081,0.49737248,3483.2,3482.5,3.657486]
[1718957410606,2.707,3484.4,3482.6,0.55]
[1718957410807,1.33628384,3484.3,3482.6,0.55]
[1718957411021,1.29609842,3484.2,3482.7,4.1867]
[1718957411224,1.29593348,3484.1,3482.8,0.55]
[1718957411525,1.29593348,3484.1,3482.9,4.71537]
[1718957411526,1.29593348,3484.0,3482.9,4.71537]
[1718957411726,0.49720754,3483.9,3482.9,4.71537]
[1718957411925,0.79953427,3483.8,3482.9,4.1867]
[1718957412087,0.49720754,3483.7,3482.9,4.1867]
[1718957412287,0.79953427,3483.6,3482.9,4.1867]
[1718957412501,0.49720754,3483.5,3482.9,4.1867]
[1718957412823,2.707,3484.4,3483.0,0.41867]
[1718957413044,1.33711268,3484.3,3483.0,0.41867]
[1718957413249,1.29692726,3484.2,3483.1,4.0275]
[1718957413446,2.707,3484.7,3483.1,4.0275]
[1718957413447,1.29692726,3484.1,3483.2,0.55]
[1718957413648,1.29692726,3484.0,3483.2,0.55]
[1718957413949,0.49722612,3483.9,3483.3,0.45775]
[1718957414109,0.49722612,3484.5,3483.3,0.45775]
[1718957414423,0.79934026,3484.4,3483.4,4.3289]
[1718957414752,3.0,3484.6,3483.3,0.45775]
[1718957414753,0.49715436,3484.3,3483.6,4.3289]
[1718957415047,2.707,3485.0,3483.7,0.55]
[1718957415048,0.49715436,3484.5,3483.7,0.55]
[1718957415215,0.7997002,3484.4,3483.7,0.98289]
[1718957415415,0.49715436,3484.3,3483.7,0.98289]
[1718957415610,0.49715436,3484.8,3483.7,0.98289]
[1718957415817,0.80005502,3484.7,3483.7,0.98289]
[1718957416018,0.80005502,3484.6,3483.7,0.98289]
[1718957416217,0.80005502,3484.5,3483.6,4.3289]
[1718957416527,1.29716007,3484.4,3483.6,4.3289]
[1718957416726,1.29716007,3484.3,3483.6,4.3289]
[1718957416922,0.80005502,3484.2,3483.6,4.3289]
[1718957417120,1.29716007,3484.2,3483.6,4.3289]
[1718957417349,3.0,3484.9,3483.6,4.3289]
[1718957417350,1.29716007,3484.1,3483.6,4.3289]
[1718957417555,0.49710505,3484.0,3483.6,4.3289]
[1718957417711,0.53729047,3484.8,3483.6,4.3289]
[1718957417913,0.83995761,3484.7,3483.6,4.3289]
[1718957418114,1.29687724,3484.6,3483.6,4.3289]
[1718957418415,1.29687724,3484.5,3483.6,4.3289]
[1718957418641,1.29687724,3484.4,3483.6,4.3289]
[1718957418843,0.79983962,3484.3,3483.6,4.3289]
[1718957419162,0.79983962,3484.3,3482.8,7.37]
[1718957419163,2.43310791,3485.8,3483.8,4.2408]
[1718957419461,3.0,3486.8,3483.8,4.2408]
[1718957419462,0.79966705,3485.5,3483.9,4.7908]
[1718957419615,5.707,3486.5,3484.3,4.2408]
[1718957419815,0.84007106,3486.4,3484.5,4.2408]
[1718957420047,0.79988564,3486.3,3484.6,4.76256674]
[1718957420385,0.79988564,3486.3,3484.7,0.47625667]
[1718957420662,2.43256908,3487.4,3484.9,4.0983]
[1718957420826,0.1186479,3488.1,3486.1,4.0983]
[1718957421038,0.1186479,3488.1,3486.2,0.55]
[1718957421354,0.04018542,3488.0,3486.3,0.694318]
[1718957421514,0.04018542,3488.0,3486.1,4.0983]
[1718957423689,2.707,3487.2,3486.1,4.0983]
[1718957423888,3.04018542,3487.1,3486.1,4.0983]
[1718957424102,3.04018542,3487.1,3484.8,4.123]
[1718957424285,2.707,3486.7,3484.8,4.123]
[1718957424459,3.04018542,3486.6,3484.9,0.45992567]
[1718957425496,3.04018542,3486.6,3484.8,4.123]
[1718957425497,2.707,3486.2,3484.8,4.123]
[1718957425798,0.04018542,3486.1,3483.8,4.1036]
[1718957425958,3.04018542,3486.1,3483.8,4.1036]
[1718957426153,3.04018542,3486.1,3483.9,0.453649]
[1718957426154,0.04018542,3486.1,3483.9,0.453649]
[1718957426466,3.04018542,3486.1,3483.9,0.453649]
[1718957427099,4.0,3486.0,3483.9,0.453649]
[1718957427385,3.04018542,3485.9,3483.9,0.453649]
[1718957428199,4.0,3485.8,3483.9,0.453649]
[1718957428486,3.04018542,3485.7,3484.0,0.4557249]
[1718957429050,3.04018542,3485.7,3484.1,0.55]
[1718957430899,3.0,3485.7,3484.1,0.55]
[1718957431407,0.04018542,3485.6,3484.1,0.55]
[1718957431608,3.0,3486.1,3483.8,4.1036]
[1718957431609,2.707,3485.7,3483.8,4.1036]
[1718957431813,3.0,3485.6,3484.2,0.04560181]
[1718957431969,0.04018542,3485.5,3483.9,0.59227655]
[1718957432166,0.04018542,3485.5,3483.9,0.55]
[1718957432673,0.04018542,3485.5,3484.0,0.04227655]
[1718957433214,0.04018542,3485.5,3483.8,4.1036]
[1718957433366,0.53723452,3485.5,3483.8,4.1036]
[1718957433696,2.707,3485.1,3483.1,7.37]
[1718957433912,2.707,3484.6,3482.7,4.2421]
[1718957434209,0.53735686,3484.5,3483.2,0.04233118]
[1718957434412,3.53735686,3484.5,3482.8,0.42421]
[1718957434703,3.04018542,3484.5,3483.3,0.04081112]
[1718957434866,3.04018542,3484.5,3482.8,0.42421]
[1718957435279,3.04018542,3484.5,3482.9,0.04081112]
[1718957435568,3.0,3484.5,3482.9,0.04081112]
[1718957435775,3.0,3485.0,3482.9,0.04081112]
[1718957436009,3.0,3485.0,3483.0,0.47071211]
[1718957436309,3.0,3485.0,3483.1,0.55]
[1718957436513,3.0,3485.0,3483.1,0.59081112]
[1718957436667,3.0,3485.0,3483.2,4.1646]
[1718957436864,3.033,3486.1,3483.3,0.55]
[1718957436865,2.707,3485.7,3483.3,0.55]
[1718957437063,3.53721416,3485.6,3483.4,0.53054111]
[1718957437307,0.49702874,3485.5,3483.5,0.55]
[1718957437513,0.53720414,3485.5,3483.6,4.1646]
[1718957437667,3.0,3485.6,3483.7,4.07859522]
[1718957437866,2.707,3486.3,3483.7,4.11940634]
[1718957438070,0.53716032,3486.2,3483.8,0.05738086]
[1718957438263,0.53716032,3486.2,3483.9,0.55]
[1718957438264,2.707,3485.8,3483.9,0.55]
[1718957438509,0.53716032,3485.7,3484.0,0.46694063]
[1718957438816,0.53716032,3485.7,3484.1,0.55]
[1718957438984,0.53716032,3485.7,3483.7,1.07859522]
[1718957439191,0.53716032,3485.7,3484.2,0.04081112]
[1718957439602,0.53716032,3485.7,3483.7,1.07859522]
[1718957439915,2.707,3485.3,3484.3,0.04081112]
[1718957440111,2.707,3485.3,3483.7,0.52859522]
[1718957440112,0.53725086,3485.2,3483.7,0.52859522]
[1718957440421,3.53725086,3485.2,3483.7,0.52859522]
[1718957440668,3.53725086,3485.2,3483.8,1.20631952]
[1718957440794,0.49706544,3485.1,3483.8,1.24574686]
[1718957440978,0.04018542,3485.0,3483.8,1.24574686]
[1718957441375,0.49706544,3485.1,3483.8,1.24574686]
[1718957441698,0.53725086,3485.1,3483.8,1.24574686]
[1718957444185,0.49706544,3485.1,3483.8,1.24574686]
[1718957444410,0.49706544,3485.1,3483.9,0.05731601]